[Event "13th Chennai Open 2022"]
[Site "Chennai"]
[Date "2022.06.26"]
[Round "10.14"]
[White "Tran, Tuan Minh"]
[Black "Jani Kushal R"]
[Result "1-0"]
[ECO "E61"]
[WhiteElo "2533"]
[BlackElo "1800"]
[Annotator "TA"]
[PlyCount "67"]
[EventDate "2022.06.19"]
[EventType "swiss"]
[EventCountry "IND"]
[SourceTitle "playchess.com"]
[Source "ChessBase"]
[SourceQuality "1"]
[TimeControl "5400+30"]

{[%evp 18,67,12,33,20,15,33,0,0,-7,0,6,10,8,8,12,18,0,6,28,91,54,95,110,104,102,241,235,304,300,289,299,312,310,316,329,958,1021,1008,1009,1104,1066,868,1045,1067,1026,991,783,783,783,783,783]} 1. c4 {[%emt 0:00:20]} Nf6 {[%emt 0:00:19]} 2. Nc3 {[%emt 0:00:05]} g6 {[%emt 0:00:06]} 3. g3 {[%emt 0:00:07]} Bg7 {[%emt 0:00:08]} 4. Bg2 {[%emt 0:00:03]} O-O {[%emt 0:00:10]} 5. e3 {[%emt 0:00:16]} c5 {[%emt 0:03:20]} 6. Nge2 {[%emt 0:00:31]} Nc6 {[%emt 0:02:12]} 7. O-O {[%emt 0:00:05]} d6 {[%emt 0:01:31]} 8. d4 {[%emt 0:00:22]} Bg4 {[%emt 0:02:25] Recently 8...Bd7 got a lot of attention.} 9. h3 {[%emt 0:00:15]} cxd4 {[%emt 0:00:26]} 10. exd4 {[%emt 0:00:08]} Bxe2 {[%emt 0:02:01] E61: King's Indian: Early deviations for White, including Smyslov System.} 11. Nxe2 {[%emt 0:00:04]} d5 {[%emt 0:02:02]} 12. cxd5 {[%emt 0:07:34]} Nxd5 {[%emt 0:02:24] The position is equal.} 13. Qb3 {[%emt 0:00:04]} Nb6 {[%emt 0:05:59]} 14. d5 {[%emt 0:04:12]} Na5 {[%emt 0:01:09]} 15. Qf3 {[%emt 0:01:23]} Nac4 {[%emt 0:03:28]} 16. Rb1 {[%emt 0:00:19][%cal Ba1b1,Bb1c1,Bc1c4][%mdl 32] [#]} Rc8 $146 {[%emt 0:02:13]} ({Predecessor:} 16... Ne5 17. Qb3 Qd7 18. Rd1 Qf5 19. Bf4 Nec4 20. Nc3 Rac8 21. d6 Nxd6 22. Bxd6 exd6 23. Bxb7 Rb8 24. Bg2 d5 25. Nxd5 {½-½ (25) Valderrama Quiceno,E (2423)-Escobar Medina,A (2296) Sitges 2019}) 17. b3 {[%emt 0:01:10]} Ne5 {[%emt 0:07:56]} 18. Qe4 {[%emt 0:00:06]} Nbd7 {[%emt 0:00:16]} (18... f5 $11 {keeps the balance.} 19. Qb4 Nd3) 19. Ba3 {[%emt 0:06:58]} Nc5 {[%emt 0:01:34]} 20. Qe3 {[%emt 0:00:06]} Qb6 {[%emt 0:09:48]} 21. Rbc1 {[%emt 0:03:37]} Ned3 {[%emt 0:02:01] [#] A mistake that costs the game.} (21... Ned7 $16) 22. Rc4 $1 $18 {[%emt 0:00:05]} (22. Qxe7 Rfe8 23. Bxc5 Rxe7 24. Bxb6 Nxc1 25. Nxc1 axb6 $19) 22... Qa6 {[%emt 0:09:59]} 23. Bxc5 {[%emt 0:06:37]} (23. Rxc5 Nxc5 24. Bxc5 Rxc5 25. Qxc5 Qxe2 $14) 23... Nxc5 {[%emt 0:00:24]} 24. Rfc1 {[%emt 0:00:18]} (24. Rxc5 Rxc5 25. Qxc5 Qxe2 $14) ({Not} 24. Qxe7 Rfe8 25. Qh4 (25. Rxc5 Rxe7 26. Rxc8+ Bf8 $15) 25... Rxe2 $15) 24... b6 {[%emt 0:00:34]} 25. b4 {[%emt 0:00:13][%cal Bb3b4,Bb4b5][%mdl 32]} (25. Qxe7 $2 Rce8 26. Qg5 Rxe2 $19) 25... Bb2 {[%emt 0:09:20]} 26. R1c2 {[%emt 0:00:28]} ({Less strong is} 26. bxc5 Bxc1 27. Rxc1 bxc5 $16) 26... Na4 $2 {[%emt 0:00:11]} (26... Bf6 27. bxc5 Rxc5) 27. Rxc8 {[%emt 0:01:02] White is clearly winning.} Rxc8 {[%emt 0:00:12]} 28. b5 {[%emt 0:00:02]} Qb7 {[%emt 0:05:18] [#]} 29. d6 $1 {[%emt 0:00:06]} exd6 {[%emt 0:00:53]} 30. Bxb7 {[%emt 0:00:15]} Rxc2 {[%emt 0:00:04]} 31. Bd5 {[%emt 0:00:46] Intending Qe8+ and mate.} Rc7 {[%emt 0:00:43]} 32. Qb3 {[%emt 0:00:18]} Nc3 {[%emt 0:00:09]} 33. Bxf7+ {[%emt 0:00:37]} Rxf7 {[%emt 0:00:06]} 34. Nxc3 {[%emt 0:00:10] Weighted Error Value: White=0.08 (flawless) /Black=0.27 (precise)} 1-0

[Event "13th Chennai Open 2022"]
[Site "Chennai"]
[Date "2022.06.26"]
[Round "10.15"]
[White "Srijit Paul"]
[Black "Sarthak Rawat"]
[Result "1-0"]
[ECO "B36"]
[WhiteElo "2399"]
[BlackElo "1798"]
[Annotator "TA"]
[PlyCount "73"]
[EventDate "2022.06.19"]
[EventType "swiss"]
[EventCountry "IND"]
[SourceTitle "playchess.com"]
[Source "ChessBase"]
[SourceQuality "1"]
[TimeControl "5400+30"]

{[%evp 24,73,52,45,48,40,85,85,85,82,96,93,95,100,97,98,96,93,97,60,60,60,62,46,46,46,64,62,117,102,103,103,97,95,98,99,96,93,95,98,188,187,139,156,254,139,847,757,1010,983,961,947]} 1. e4 {[%emt 0:09:18]} c5 {[%emt 0:00:07]} 2. Nf3 {[%emt 0:00:07]} Nc6 {[%emt 0:00:06]} 3. d4 {[%emt 0:00:15]} cxd4 {[%emt 0:00:06]} 4. Nxd4 {[%emt 0:00:03]} g6 {[%emt 0:00:07]} 5. c4 {[%emt 0:00:05]} Nf6 {[%emt 0:00:05]} 6. Nc3 {[%emt 0:00:03]} Nxd4 {[%emt 0:00:06]} 7. Qxd4 {[%emt 0:00:06]} d6 {[%emt 0:00:04]} 8. Be3 {[%emt 0:00:36]} Bg7 {[%emt 0:00:11]} 9. Qd2 {[%emt 0:00:21]} O-O {[%emt 0:00:24]} 10. f3 {[%emt 0:00:03]} Be6 {[%emt 0:00:19]} 11. Rc1 {[%emt 0:00:07]} Qa5 {[%emt 0:00:40]} 12. Nd5 {[%emt 0:00:13]} Qxd2+ {[%emt 0:05:35]} 13. Kxd2 {[%emt 0:00:06]} Bxd5 {[%emt 0:00:32] B36: Sicilian: Maroczy Bind: Gurgenidze System.} 14. cxd5 {[%emt 0:02:19]} Rfc8 {[%emt 0:00:10]} 15. Rxc8+ {[%emt 0:00:06]} Rxc8 {[%emt 0:00:03] White is better.} 16. g3 {[%emt 0:00:05]} (16. Bxa7 $6 Ra8 17. Be3 Rxa2 $11) 16... Nd7 {[%emt 0:09:54]} 17. Bh3 {[%emt 0:00:35]} Rc7 {[%emt 0:00:04]} 18. Bxd7 {[%emt 0:18:14]} (18. Bxa7 $6 b6 19. Bxd7 Rxa7 $15) 18... Rxd7 $16 {[%emt 0:00:04][%mdl 4096] Endgame KRB-KRB} 19. b3 {[%emt 0:00:16]} (19. Bxa7 b6 20. Bxb6 Rb7 $14) 19... a6 {[%emt 0:05:44]} 20. Rc1 {[%emt 0:00:06] Inhibits Rc7. Threatening mate with Rc8+.} f5 {[%emt 0:00:26] [#]} 21. Rc8+ $146 {[%emt 0:00:15]} ({Predecessor:} 21. exf5 gxf5 22. g4 fxg4 23. fxg4 Kf7 24. Kd3 e6 25. Rf1+ Ke8 26. dxe6 Re7 27. Rf5 Rxe6 {½-½ (40) Borgo,G (2444)-Vaulin,A (2492) Paks 1999}) 21... Kf7 {[%emt 0:00:08]} 22. Kd3 {[%emt 0:00:02]} e6 {[%emt 0:12:33]} 23. Kc4 {[%emt 0:00:40] White is more active.} fxe4 {[%emt 0:26:54]} 24. fxe4 {[%emt 0:00:05]} Re7 {[%emt 0:00:10]} 25. Bf4 {[%emt 0:05:16]} b5+ {[%emt 0:14:15]} ({Black should try} 25... Rd7 $1 $14) 26. Kd3 {[%emt 0:00:22]} exd5 {[%emt 0:00:07]} 27. exd5 {[%emt 0:00:05]} Re1 {[%emt 0:00:23]} 28. Rc7+ {[%emt 0:01:01]} (28. Bxd6 Rd1+ 29. Ke4 Rd4+ 30. Ke3 Rxd5 31. Rc7+ Kg8 $11) 28... Kg8 {[%emt 0:00:16]} 29. Rc6 {[%emt 0:18:51]} (29. Bxd6 Rd1+ 30. Ke2 Rxd5 $14) 29... Rd1+ {[%emt 0:00:12]} 30. Ke2 {[%emt 0:00:24]} Rxd5 {[%emt 0:00:07]} 31. Rxa6 {[%emt 0:00:03]} ({But not} 31. Rxd6 $6 Rxd6 32. Bxd6 Kf7 $11) 31... Bf8 {[%emt 0:02:03]} (31... b4 $16 {was worth a try.}) 32. Ra5 $1 $18 {[%emt 0:01:27]} Kf7 {[%emt 0:09:29] [#]} 33. a4 $1 {[%emt 0:03:46][%cal Ba2a4,Ba4a5][%mdl 32]} Ke6 {[%emt 0:00:11] [#]} (33... Be7 $16 {is a better defense.} 34. Rxb5 (34. axb5 Ke6 $16) 34... Rxb5 35. axb5 Ke6) 34. Rxb5 {[%emt 0:01:00]} ({Not} 34. axb5 Bg7 $14) ({Only move:} 34. Ra8 $1 $18) 34... Rd4 $2 {[%emt 0:02:05][%mdl 8192]} (34... Rxb5 $16 35. axb5 Be7) 35. Be3 {[%emt 0:00:20] White is clearly winning.} Re4 {[%emt 0:00:46]} 36. Kd3 {[%emt 0:00:18]} d5 {[%emt 0:00:25]} 37. a5 {[%emt 0:00:19] Weighted Error Value: White=0.09 (flawless) /Black=0.20 (precise)} 1-0

[Event "13th Chennai Open 2022"]
[Site "Chennai"]
[Date "2022.06.26"]
[Round "10.16"]
[White "Girinath, P.D.S."]
[Black "Ashwin Sairam"]
[Result "1-0"]
[ECO "C41"]
[WhiteElo "2361"]
[BlackElo "1670"]
[Annotator "TA"]
[PlyCount "101"]
[EventDate "2022.06.19"]
[EventType "swiss"]
[EventCountry "IND"]
[SourceTitle "playchess.com"]
[Source "ChessBase"]
[SourceQuality "1"]
[TimeControl "5400+30"]

{[%evp 9,101,8,17,14,23,10,31,17,83,85,123,141,179,183,167,175,180,179,283,287,290,284,273,232,277,274,258,288,285,281,314,247,270,275,314,328,332,333,318,275,283,256,264,237,254,250,221,212,237,209,247,227,978,977,1015,993,975,949,871,783,899,813,818,816,806,805,779,741,1105,1096,29962,1257,29960,29961,29963,29965,29963,6491,29986,29987,29989,29990,29990,29991,29992,29993,29993,29991,29992,29993,29993,29993,29996,29997]} 1. e4 {[%emt 0:00:05]} d6 {[%emt 0:00:07]} 2. d4 {[%emt 0:00:41]} Nf6 {[%emt 0:00:08]} 3. Nc3 {[%emt 0:00:27]} Nbd7 {[%emt 0:00:08]} 4. Nf3 {[%emt 0:10:49]} e5 {[%emt 0:00:10]} 5. Rg1 {[%emt 0:07:33]} c6 {[%emt 0:04:05]} 6. g4 {[%emt 0:04:06] C41: Philidor Defence.} h6 {[%emt 0:00:10]} 7. Be3 {[%emt 0:06:49] 7.h4 is the hot move.} b5 {[%emt 0:01:43]} 8. a3 {[%emt 0:01:22][%cal Ba2a3,Ba3b4,Bb4b5][%mdl 32] White is slightly better.} a5 {[%emt 0:06:54]} (8... Qc7 $11 {keeps the balance.}) 9. d5 $16 {[%emt 0:04:05] [#]} b4 $146 {[%emt 0:18:15]} ({Predecessor:} 9... Bb7 10. dxc6 Bxc6 11. Bxb5 Bxb5 12. Nxb5 Nxe4 13. Qd5 Rb8 14. Ba7 Nef6 15. Nxd6+ Bxd6 16. Qxd6 Rxb2 {1-0 (70) Domene Mulyukov,A (1967)-Munoz Valles,J (1750) Salobrena 2021}) 10. axb4 {[%emt 0:02:48] White is more active.} (10. dxc6 bxc3 11. cxd7+ Bxd7 12. bxc3 Nxe4 $17) 10... Bb7 {[%emt 0:00:49]} 11. dxc6 {[%emt 0:23:04]} Bxc6 {[%emt 0:00:30]} 12. b5 $36 {[%emt 0:00:10][%mdl 2048] Keeping Black busy.} Bb7 {[%emt 0:07:19]} 13. Nd2 {[%emt 0:04:04]} Nc5 {[%emt 0:04:24]} (13... d5 $142) 14. Bxc5 $18 {[%emt 0:06:40]} dxc5 {[%emt 0:00:39]} 15. Bc4 {[%emt 0:00:45]} Be7 {[%emt 0:02:27]} 16. Qe2 {[%emt 0:07:23]} Nh7 {[%emt 0:04:48]} 17. Bd5 {[%emt 0:01:10]} Bxd5 {[%emt 0:02:06]} 18. Nxd5 {[%emt 0:17:29]} (18. exd5 O-O 19. Nc4 (19. Qxe5 Bf6 $16) 19... Bg5 $18) 18... O-O {[%emt 0:00:09]} 19. Nc4 {[%emt 0:00:00] Pair of Knights!} Bg5 {[%emt 0:05:40]} 20. Rd1 {[%emt 0:00:00]} (20. Nxe5 Qd6 $18) 20... Qb8 {[%emt 0:02:28]} 21. b6 {[%emt 0:00:00]} Ra6 {[%emt 0:00:12]} 22. Rg3 {[%emt 0:00:00]} a4 {[%emt 0:01:34]} 23. Ra3 {[%emt 0:00:00]} Nf6 {[%emt 0:03:11]} 24. Nxf6+ {[%emt 0:00:21]} Bxf6 {[%emt 0:00:06]} 25. b3 {[%emt 0:00:17]} Bd8 {[%emt 0:00:53]} 26. Rxa4 {[%emt 0:01:02]} (26. bxa4 $6 Bxb6 27. Kf1 Bc7 $16) 26... Rxa4 {[%emt 0:00:03]} 27. bxa4 {[%emt 0:00:11]} Bxb6 {[%emt 0:00:02]} 28. Kf1 {[%emt 0:00:20] [#] And now Rb1 would win.} Bc7 {[%emt 0:01:26]} 29. Ne3 {[%emt 0:00:51]} Qa8 {[%emt 0:04:29]} 30. Qc4 {[%emt 0:00:15]} Rb8 $2 {[%emt 0:00:59]} (30... g6 31. Rd7 (31. Qxc5 Bd8 $16) 31... Bd8) 31. Rd7 {[%emt 0:00:34]} Rb1+ {[%emt 0:02:30]} 32. Ke2 {[%emt 0:00:59]} Qe8 {[%emt 0:00:29]} 33. Rxc7 {[%emt 0:00:24]} Rb4 {[%emt 0:00:09]} 34. Qd5 {[%emt 0:01:51]} Rd4 {[%emt 0:01:42]} 35. Qc6 {[%emt 0:00:15]} Qxc6 {[%emt 0:00:15]} 36. Rxc6 {[%emt 0:00:07]} Rxa4 {[%emt 0:00:03][%mdl 4096] Endgame KRN-KR} 37. c4 {[%emt 0:00:14]} Ra5 {[%emt 0:00:05]} 38. h4 {[%emt 0:00:12]} g6 {[%emt 0:00:06]} 39. g5 {[%emt 0:00:11]} hxg5 {[%emt 0:00:03]} 40. hxg5 {[%emt 0:00:06]} (40. Rc8+ $142 Kg7 41. hxg5 Ra3 42. Rxc5 Ra2+ 43. Kf3 Ra6 44. Rxe5 f6 45. Rb5) 40... Kg7 {[%emt 0:00:03]} 41. Rc8 {[%emt 0:00:24]} Ra2+ {[%emt 0:00:17]} 42. Kf1 {[%emt 0:00:19]} Ra5 {[%emt 0:00:09]} 43. Kg2 {[%emt 0:00:40]} (43. Ng4 $142 Ra2 44. Kg2 Re2 45. Kf3 (45. Nf6 Rxf2+ 46. Kg3 Rf3+ 47. Kh4 Rh3+ 48. Kxh3 $11) 45... Ra2 46. Nxe5 Ra7 47. Kf4 f6 48. gxf6+ Kxf6 49. Rc6+ Ke7 50. Nxg6+ Kd7 51. Ne5+ Ke7 52. Kf5) 43... Kh7 {[%emt 0:00:06]} 44. Nd5 {[%emt 0:00:21] White mates.} Kg7 {[%emt 0:00:13]} 45. Nf6 {[%emt 0:00:26][%csl Gf6][%cal Rc8g8]} Ra8 {[%emt 0:00:05]} 46. Ne8+ {[%emt 0:00:11]} Kf8 {[%emt 0:00:13]} 47. Rxa8 {[%emt 0:00:07]} Ke7 {[%emt 0:00:05]} 48. Nc7 {[%emt 0:00:24]} f6 {[%emt 0:32:03]} 49. Nd5+ {[%emt 0:00:08]} Kf7 {[%emt 0:00:00]} 50. Ra7+ {[%emt 0:00:08]} Ke6 {[%emt 0:00:00]} 51. gxf6 {[%emt 0:00:20] Black got outplayed after the opening.  Weighted Error Value: White=0.10 (very precise) /Black=0.79} 1-0

[Event "13th Chennai Open 2022"]
[Site "Chennai"]
[Date "2022.06.26"]
[Round "10.17"]
[White "Liyanage, Pesandu Rashmitha"]
[Black "Abdyjapar, Asyl"]
[Result "0-1"]
[ECO "D03"]
[WhiteElo "1730"]
[BlackElo "2346"]
[Annotator "TA"]
[PlyCount "88"]
[EventDate "2022.06.19"]
[EventType "swiss"]
[EventCountry "IND"]
[SourceTitle "playchess.com"]
[Source "ChessBase"]
[SourceQuality "1"]
[TimeControl "5400+30"]

{[%evp 16,88,26,28,52,20,12,27,29,24,25,30,21,-11,-7,-4,113,-56,-43,-35,-45,-99,-97,-103,-109,-129,-139,-127,-25,-23,0,0,-25,-138,-87,-96,-79,-192,-188,-191,-188,-180,-119,-288,-189,-192,-181,-179,-150,-160,-152,-159,-143,-136,-129,-176,-168,-131,-129,-198,-212,-462,-455,-337,-336,-320,-306,-545,-543,-524,-506,-29977,-29978,-29972,-155]} 1. d4 {[%emt 0:02:17]} Nf6 {[%emt 0:00:16]} 2. Nf3 {[%emt 0:00:06]} d5 {[%emt 0:00:36]} 3. Bg5 {[%emt 0:00:31]} c5 {[%emt 0:00:16]} 4. e3 {[%emt 0:00:30]} Nc6 {[%emt 0:00:38]} 5. Nbd2 {[%emt 0:00:39]} e6 {[%emt 0:00:17]} 6. c3 {[%emt 0:00:09]} Bd6 {[%emt 0:00:37]} 7. Bd3 {[%emt 0:00:07]} h6 {[%emt 0:00:09] is the new trend.} 8. Bh4 {[%emt 0:00:07]} O-O {[%emt 0:00:22]} 9. O-O {[%emt 0:00:19]} e5 {[%emt 0:00:18] D03: 1 d4 d5 2 Nf3 Nf6 3 Bg5, including Torre Attack with early ...d5.} 10. dxe5 {[%emt 0:00:13]} (10. e4 $5 {[%cal Re4d5]} g5 11. dxc5 Bxc5 12. Bg3 $11) 10... Nxe5 {[%emt 0:00:05]} 11. Nxe5 {[%emt 0:00:19]} Bxe5 {[%emt 0:00:04] White has an edge.} 12. f4 {[%emt 0:00:12] was the old line (12.Nf3).} Bd6 {[%emt 0:00:42]} 13. e4 {[%emt 0:00:13]} c4 {[%emt 0:00:35] [#]} 14. Bc2 $146 {[%emt 0:28:29]} ({Predecessor:} 14. Be2 Qb6+ 15. Bf2 Bc5 16. e5 Ne4 17. Nxe4 dxe4 18. Bxc5 Qxc5+ 19. Qd4 Qxd4+ 20. cxd4 {1-0 (40) Morozevich,A (2788)-Alekseev,E (2708) Moscow 2008}) 14... Qb6+ {[%emt 0:02:55]} 15. Kh1 $132 {[%emt 0:09:31][%mdl 2048] Strongly threatening Bxf6. White has counterplay} Ng4 {[%emt 0:00:44]} (15... Qxb2 $2 16. Bxf6 gxf6 17. exd5 $18) (15... Bg4 $11 16. Qb1 Nxe4 17. Bxe4 dxe4 18. Nxc4 Qc5 19. Nxd6 (19. Qxe4 Bf5 $11) 19... Qxd6) 16. Qe2 $2 {[%emt 0:00:44]} (16. exd5 $16 Ne3 17. Nxc4 $1 {[%mdl 512]} (17. Bf2 Nxd1 18. Bxb6 Nxc3 $14) 17... Nxd1 18. Nxb6) 16... Qe3 {[%emt 0:01:35]} ({Much weaker is} 16... Qxb2 17. Rac1 Bc5 18. exd5 $11) 17. Rae1 {[%emt 0:18:54]} Bxf4 {[%emt 0:00:46]} 18. Rxf4 {[%emt 0:00:37]} Qxf4 $17 {[%emt 0:00:06][%csl Gg4][%cal Rf4h2]} 19. Bg3 {[%emt 0:00:07]} Qg5 {[%emt 0:01:36]} 20. Nf3 {[%emt 0:00:38]} Qh5 {[%emt 0:00:20]} 21. e5 {[%emt 0:00:39]} Re8 {[%emt 0:05:57]} (21... f5 $17 {Threatens to win with ...Be6.} 22. Qd2 Qf7) 22. Qd1 $11 {[%emt 0:06:06]} f5 {[%emt 0:03:40][%cal Of5f4]} 23. Kg1 {[%emt 0:05:06]} Qf7 {[%emt 0:03:01] And now ...f4 would win.} 24. Qb1 {[%emt 0:04:56]} (24. Bf4 $11 {keeps the balance.}) 24... f4 {[%emt 0:02:48]} (24... Qf8 $142 25. Ba4 f4 26. Bxf4 Qxf4 $1 27. Bxe8 Bf5) 25. Bg6 $17 {[%emt 0:02:02] [#]} Qf8 {[%emt 0:02:35]} 26. Bxe8 {[%emt 0:02:52]} (26. Bf2 $17) 26... fxg3 $19 {[%emt 0:01:04] The board is on fire.} 27. Bg6 {[%emt 0:00:52]} gxh2+ {[%emt 0:00:36]} 28. Kh1 {[%emt 0:00:32]} Qf4 {[%emt 0:01:22]} (28... Nf2+ $19 29. Kxh2 Qf4+ 30. Kg1 {[#]} Nh3+ $1 31. Kh1 Be6) 29. Qc2 $2 {[%emt 0:00:57] This costs White the game.} (29. Re2 $17) 29... Be6 {[%emt 0:00:35] ...Qg3 is the strong threat.} 30. Bh5 {[%emt 0:05:07]} Rf8 {[%emt 0:03:30] Hoping for ...Qg3.} 31. Qe2 {[%emt 0:02:29]} Qg3 {[%emt 0:04:16]} 32. Bxg4 {[%emt 0:00:48]} Bxg4 {[%emt 0:01:25]} (32... Qxg4 33. Qe3 $17) 33. e6 {[%emt 0:00:21][%cal Be5e6,Be6e7][%mdl 32]} Re8 {[%emt 0:02:33]} ({Weaker is} 33... Rxf3 34. e7 Bh5 35. e8=Q+ Bxe8 36. gxf3 $15) 34. e7 {[%emt 0:00:35]} Bxf3 {[%emt 0:00:58]} 35. gxf3 $17 {[%emt 0:06:29][%mdl 4096] Endgame KQR-KQR} (35. Qe6+ $17 Kh8 36. gxf3) 35... Qd6 $19 {[%emt 0:00:53]} 36. f4 {[%emt 0:00:56]} b5 {[%emt 0:03:31]} 37. a3 {[%emt 0:00:22]} (37. Qh5 $17 Rxe7 38. Rxe7 Qxe7 39. Qxd5+ Qf7 40. Qe5) 37... a6 {[%emt 0:01:11]} ({Worse is} 37... Qxf4 38. Qe6+ Qf7 39. Qe5) 38. Qh5 $2 {[%emt 0:03:02]} (38. f5 {was called for.}) 38... Rxe7 {[%emt 0:00:31]} 39. Rxe7 {[%emt 0:00:07]} Qxe7 {[%emt 0:00:06]} 40. Qxd5+ {[%emt 0:00:04] KQ-KQ} Kh7 {[%emt 0:01:18]} 41. f5 {[%emt 0:00:53]} (41. Qf5+ g6 42. Qc8) 41... Qh4 {[%emt 0:02:16]} 42. Qf3 {[%emt 0:00:59] Prevents Qf2.} h5 {[%emt 0:00:34] ( -> ...Qg4)} 43. Qf1 {[%emt 0:00:33]} (43. Qe3 $19 Qg4 44. Kxh2) 43... Qg3 {[%emt 0:00:26]} 44. Qd1 {[%emt 0:00:29]} Qg1+ $2 {[%emt 0:00:09] Weighted Error Value: White=0.59/Black=0.22 (precise)} (44... Kh6 {mates} 45. Qd2+ Kh7 46. Qd4 Qg1+ 47. Qxg1 hxg1=Q+ 48. Kxg1 Kh6 49. f6 gxf6 50. Kh1 h4 51. a4 bxa4 52. Kg2 Kg5 53. Kf3 f5 54. Kf2 Kg4 55. Ke3 h3 56. Kd4 f4 57. Kxc4 f3 58. Kd4 f2 59. Ke5 f1=Q 60. Kd6 h2 61. Kc5 h1=Q 62. c4 Qf6 63. Kb4 Qb6+ 64. Kc3 Qc1+ 65. Kd3 Qbe3#) 0-1

[Event "13th Chennai Open 2022"]
[Site "Chennai"]
[Date "2022.06.26"]
[Round "10.18"]
[White "Adireddy Arjun"]
[Black "Haribalu, V.."]
[Result "1-0"]
[ECO "B40"]
[WhiteElo "1898"]
[BlackElo "2233"]
[Annotator "RC"]
[PlyCount "73"]
[EventDate "2022.06.19"]
[EventType "swiss"]
[EventCountry "IND"]
[SourceTitle "playchess.com"]
[Source "ChessBase"]
[SourceQuality "1"]
[TimeControl "5400+30"]

1. e4 {[%emt 0:00:46]} c5 {[%emt 0:00:07]} 2. Nf3 {[%emt 0:01:26]} e6 {[%emt 0:02:48]} 3. d4 {[%emt 0:00:18]} cxd4 {[%emt 0:00:05]} 4. Nxd4 {[%emt 0:00:07]} Nf6 {[%emt 0:00:03]} 5. Bd3 {[%emt 0:01:52]} Nc6 {[%emt 0:00:45]} 6. Nxc6 {[%emt 0:00:29]} dxc6 {[%emt 0:00:08]} 7. O-O {[%emt 0:02:17]} e5 {[%emt 0:06:26]} 8. Nd2 {[%emt 0:00:55]} Bc5 {[%emt 0:10:56]} 9. Nc4 {[%emt 0:05:25]} Ng4 {[%emt 0:31:07]} 10. h3 {[%emt 0:02:32]} b5 {[%emt 0:00:27]} 11. hxg4 {[%emt 0:02:54]} bxc4 {[%emt 0:00:05]} 12. Bxc4 {[%emt 0:00:15]} Qxd1 {[%emt 0:09:09]} 13. Rxd1 {[%emt 0:00:08]} Bxg4 {[%emt 0:00:05]} 14. Rd3 {[%emt 0:13:56]} Rd8 {[%emt 0:08:27]} 15. Kf1 {[%emt 0:02:59]} Rxd3 {[%emt 0:05:59]} 16. Bxd3 {[%emt 0:00:11]} Ke7 {[%emt 0:08:23]} 17. f3 {[%emt 0:00:33]} Be6 {[%emt 0:00:07]} 18. Ke2 {[%emt 0:00:34]} h5 {[%emt 0:04:56]} 19. Bd2 {[%emt 0:04:30]} f6 {[%emt 0:00:47]} 20. b4 {[%emt 0:00:40]} Bd6 {[%emt 0:02:13]} 21. c4 {[%emt 0:01:22]} Rb8 {[%emt 0:03:24]} 22. c5 {[%emt 0:02:19]} Bc7 {[%emt 0:00:01]} 23. a4 {[%emt 0:00:09]} Rd8 {[%emt 0:03:32]} 24. b5 {[%emt 0:00:32]} Bc8 {[%emt 0:00:28]} 25. Rb1 {[%emt 0:03:40]} g6 {[%emt 0:01:30]} 26. b6 {[%emt 0:05:08]} Bb8 {[%emt 0:00:06]} 27. a5 {[%emt 0:00:38]} h4 {[%emt 0:00:27]} 28. a6 {[%emt 0:02:19]} Rd4 {[%emt 0:01:18]} 29. Ra1 {[%emt 0:10:47]} g5 {[%emt 0:00:31]} 30. Ba5 {[%emt 0:00:44]} g4 {[%emt 0:00:34]} 31. bxa7 {[%emt 0:00:09]} Bxa7 {[%emt 0:00:30]} 32. Bb6 {[%emt 0:00:03]} Rd7 {[%emt 0:01:06]} 33. fxg4 {[%emt 0:00:07]} Kf8 {[%emt 0:00:00]} 34. Ke3 {[%emt 0:01:27]} Kg7 {[%emt 0:00:23]} 35. Bc4 {[%emt 0:01:04]} Re7 {[%emt 0:00:07]} 36. Rd1 {[%emt 0:00:10]} Bxg4 {[%emt 0:00:07]} 37. Rd8 {[%emt 0:00:04]} 1-0